bitfinex/quotes_SOLUSD_20250829
["timestamp","ask_amount","ask_price","bid_price","bid_amount"]
[1756439277450,0.06,216.92,216.91,49.18228125]
[1756439277745,0.06,216.92,216.91,49.15228125]
[1756439277947,0.06,216.92,216.91,49.18228125]
[1756439278267,0.06,216.92,216.91,43.00555082]
[1756439278444,0.06,216.92,216.91,49.64330194]
[1756439279151,0.06,216.92,216.91,49.61330194]
[1756439280360,0.06,216.92,216.91,63.23889595]
[1756439280936,0.06,216.92,216.91,49.64330194]
[1756439281463,0.06,216.92,216.91,57.64330194]
[1756439283259,0.06,216.92,216.91,57.61330194]
[1756439283563,0.06,216.92,216.91,57.55330194]
[1756439283759,0.06,216.92,216.91,50.94555082]
[1756439283963,0.06,216.92,216.91,71.17889595]
[1756439285059,0.06,216.92,216.91,150.17889595]
[1756439285252,0.06,216.92,216.91,149.71787526]
[1756439285564,0.06,216.92,216.91,151.50159648]
[1756439286880,0.06,217.02,217.01,33.73775558]
[1756439287083,0.06,217.02,217.01,59.94355106]
[1756439287259,0.06,217.02,217.01,23.15954414]
[1756439287448,0.06,217.02,217.01,61.03954414]
[1756439287642,0.06,217.02,217.01,23.15954414]
[1756439287848,0.06,217.02,217.01,61.03954414]
[1756439288073,0.06,217.02,217.01,61.01954414]
[1756439288251,0.06,217.02,217.01,23.15954414]
[1756439288451,0.06,217.02,217.01,61.01954414]
[1756439289071,0.06,217.02,217.01,23.15954414]
[1756439289266,0.06,217.02,217.01,60.99954414]
[1756439289578,0.06,217.02,217.01,63.42056355]
[1756439289769,0.06,217.02,217.01,71.42056355]
[1756439291385,0.06,217.02,217.01,57.82496954]
[1756439291859,0.06,217.02,217.01,19.98496954]
[1756439292061,0.06,217.02,217.01,57.78496954]
[1756439292482,0.06,217.02,217.01,19.98496954]
[1756439292790,0.06,217.02,217.01,57.76496954]
[1756439292969,0.06,217.02,217.01,19.98496954]
[1756439293353,0.06,217.02,217.01,57.72496954]
[1756439294478,0.06,217.02,217.01,49.72496954]
[1756439296878,0.06,217.02,217.01,128.72496954]
[1756439297051,1e-08,217.02,217.01,142.00191687]
[1756439297253,0.06,217.04,217.02,13.87991715]
[1756439297457,0.06,217.05,217.04,14.02207872]
[1756439297659,0.06,217.05,217.04,20.6538343]
[1756439297874,1e-08,217.05,217.04,108.46035855]
[1756439298085,0.06,217.06,217.05,0.14216157]
[1756439298286,0.06,217.06,217.05,58.79455763]
[1756439298782,0.06,217.08,217.06,4.89134424]
[1756439298986,0.06,217.08,217.06,110.98380193]
[1756439299288,0.06,217.08,217.06,110.52309982]
[1756439299856,0.06,217.08,217.07,13.87991715]
[1756439300081,0.06,217.08,217.07,58.61235361]
[1756439300469,0.1,217.14,217.13,39.59559401]
[1756439300682,0.1,217.14,217.13,78.12047073]
[1756439300878,0.1,217.14,217.13,89.35776216]
[1756439301584,0.1,217.14,217.13,97.35776216]
[1756439301781,0.1,217.14,217.13,59.11720858]
[1756439301979,0.1,217.14,217.13,97.39776216]
[1756439302172,0.1,217.14,217.13,96.93720858]
[1756439302359,0.1,217.14,217.13,101.45282207]
[1756439303794,0.1,217.14,217.13,101.59498364]
[1756439303978,1e-08,217.14,217.13,101.59498364]
[1756439305492,1e-08,217.14,217.13,180.59498364]
[1756439306671,1e-08,217.15,217.14,0.14216157]
[1756439306893,1e-08,217.15,217.14,25.57752885]
[1756439307099,0.06,217.17,217.16,40.02207872]
[1756439307274,0.06,217.17,217.16,84.81432426]
[1756439307470,0.1,217.19,217.17,14.02207872]
[1756439307668,0.1,217.19,217.18,71.07652627]
[1756439307895,0.1,217.19,217.18,0.28432314]
[1756439308097,0.1,217.19,217.18,70.59607872]
[1756439308402,0.1,217.19,217.18,84.3338343]
[1756439308582,0.1,217.19,217.18,46.6538343]
[1756439308783,0.1,217.19,217.18,47.11428185]
[1756439308986,0.1,217.19,217.18,89.4387574]
[1756439309182,0.06,217.22,217.21,40.02207872]
[1756439309384,0.06,217.22,217.21,82.40128986]
[1756439309775,0.06,217.25,217.23,4.48315032]
[1756439309981,0.06,217.25,217.23,42.68349189]
[1756439310201,0.06,217.25,217.23,4.94349189]
[1756439310500,0.06,217.25,217.23,42.66349189]
[1756439311197,0.06,217.25,217.23,47.26690762]
[1756439311376,0.06,217.25,217.23,47.24690762]
[1756439311584,0.8,217.24,217.23,60.84250163]
[1756439311984,0.8,217.24,217.23,60.82250163]
[1756439312796,0.8,217.24,217.23,23.14250163]
[1756439313002,0.8,217.24,217.23,18.94367445]
[1756439313177,0.8,217.24,217.23,60.80250163]
[1756439313377,0.8,217.24,217.23,60.34216006]
[1756439314305,0.8,217.24,217.19,0.46042635]
[1756439314597,4.19882718,217.23,217.14,4.60532375]
[1756439314788,0.7,217.22,217.18,4.19882718]
[1756439314983,0.7,217.21,217.2,4.19882718]
[1756439315378,0.7,217.21,217.2,42.12098875]
[1756439315579,0.7,217.21,217.19,4.19882718]
[1756439315774,0.1,217.24,217.2,4.19882718]
[1756439315995,0.1,217.24,217.21,4.19882718]
[1756439316192,0.1,217.24,217.22,4.19882718]
[1756439316403,0.7,217.23,217.22,4.19882718]
[1756439316605,0.7,217.23,217.22,37.78]
[1756439317100,0.7,217.23,217.21,4.19882718]
[1756439317309,0.1,217.24,217.22,37.76]
[1756439317605,0.1,217.24,217.23,37.76]
[1756439317794,0.7,217.23,217.19,12.19882718]
[1756439317995,0.7,217.22,217.2,37.76]
[1756439318199,0.7,217.21,217.2,37.76]
[1756439318604,9.50267745,217.21,217.11,4.19882718]
[1756439318797,4.19882718,217.16,217.12,37.86]
[1756439318998,0.7,217.15,217.12,37.86]
[1756439319191,0.7,217.14,217.12,37.86]
[1756439319394,0.7,217.13,217.12,37.86]
[1756439319598,0.7,217.13,217.12,44.86]
[1756439321708,0.7,217.13,217.12,44.89]
[1756439324014,7.32731243,217.13,217.12,0.03]
[1756439324203,11.93284828,217.13,217.12,0.03]
[1756439324405,11.93284828,217.13,217.12,37.79]
[1756439324796,5.30553585,217.13,217.12,37.79]
[1756439324992,11.93284828,217.13,217.12,0.03]
[1756439325303,12.07500985,217.13,217.12,0.03]
[1756439325497,11.93284828,217.13,217.12,0.03]
[1756439326211,12.07500985,217.13,217.12,0.03]
[1756439327525,25.67060386,217.13,217.12,0.03]
[1756439328792,26.0,217.1,217.09,0.03]
[1756439328994,32.769474,217.1,217.09,0.03]
[1756439329215,33.469474,217.1,217.09,0.03]
[1756439330503,38.07564627,217.1,217.09,0.03]
[1756439330703,0.14216157,217.09,217.04,0.03]
[1756439330902,7.469474,217.08,217.04,0.03]
[1756439332214,21.06506801,217.08,217.04,0.03]
[1756439332520,25.67166465,217.08,217.04,0.03]
[1756439334217,21.06506801,217.08,217.04,0.03]
[1756439334416,33.469474,217.08,217.04,0.03]
[1756439334617,33.32731243,217.08,217.04,0.03]
[1756439335513,0.7,217.16,217.07,7.35731243]
[1756439335823,6.62731243,217.15,217.09,6.62731243]
[1756439336026,6.62731243,217.15,217.09,7.32731243]
[1756439336200,7.32731243,217.16,217.1,6.62731243]
[1756439336402,7.32731243,217.16,217.11,4.60596011]
[1756439336603,6.62731243,217.17,217.11,11.23327254]
[1756439336830,6.62731243,217.17,217.11,48.91327254]
[1756439337015,26.7,217.19,217.12,6.62731243]
[1756439337016,6.62731243,217.18,217.12,6.62731243]
[1756439338225,6.62731243,217.16,217.11,48.91327254]
[1756439338816,32.62731243,217.12,217.04,0.73]
[1756439339017,6.62731243,217.1,217.04,45.01731243]
[1756439339228,6.62731243,217.09,217.05,0.14216157]
[1756439339418,0.7,217.11,217.07,4.63676759]
[1756439339620,6.62731243,217.1,217.07,4.63676759]
[1756439339929,0.7,217.11,217.07,4.63676759]
[1756439340128,6.62731243,217.1,217.07,4.63676759]
[1756439341102,26.0,217.12,217.07,4.63676759]
[1756439341302,6.62731243,217.11,217.07,4.63676759]
[1756439341523,6.62731243,217.11,217.07,5.32676759]
[1756439341730,6.62731243,217.11,217.07,4.63676759]
[1756439341934,6.62731243,217.11,217.07,11.63676759]
[1756439342308,7.32731243,217.1,217.07,49.27676759]
[1756439342715,6.62731243,217.11,217.07,49.27676759]
[1756439343534,7.32731243,217.11,217.07,49.27676759]
[1756439344035,6.62731243,217.08,217.07,37.67]
[1756439344235,26.0,217.11,217.07,0.03]
[1756439344436,0.06,217.19,217.11,0.14216157]
[1756439344618,0.06,217.19,217.18,6.62731243]
[1756439344818,0.06,217.19,217.18,49.78394955]
[1756439345327,0.06,217.22,217.21,26.0]
[1756439345630,0.06,217.22,217.21,33.08769639]
[1756439345815,0.06,217.22,217.21,33.74769639]
[1756439346314,0.06,217.22,217.21,47.62761354]
[1756439347032,0.1,217.24,217.22,13.87991715]
[1756439347337,0.1,217.24,217.23,58.70757115]
[1756439347510,0.1,217.24,217.23,59.36757115]
[1756439347712,0.1,217.24,217.23,52.74025872]
[1756439348014,0.1,217.24,217.23,59.36757115]
[1756439348437,0.1,217.24,217.23,63.97098688]
[1756439349342,0.1,217.24,217.23,49.9150513]
[1756439349531,0.1,217.24,217.23,49.2550513]
[1756439350520,0.1,217.24,217.23,56.9150513]
[1756439352923,0.1,217.24,217.23,70.51064531]
[1756439353661,1e-08,217.24,217.23,77.28011931]
[1756439354645,1e-08,217.24,217.23,70.28011931]
[1756439356243,1e-08,217.25,217.24,20.64939115]
[1756439356450,1e-08,217.25,217.24,21.76971153]
[1756439356639,1e-08,217.25,217.24,26.37291535]
[1756439357353,1e-08,217.25,217.24,63.95291535]
[1756439357552,1e-08,217.25,217.24,70.95291535]
[1756439360939,1e-08,217.25,217.24,69.95291535]
[1756439362870,1e-08,217.25,217.24,70.37940006]
[1756439363339,0.8,217.36,217.31,13.59559401]
[1756439363537,0.1,217.36,217.35,4.19765702]
[1756439363761,0.1,217.36,217.35,41.65765702]
[1756439364139,0.8,217.36,217.35,41.65765702]
[1756439365366,0.8,217.36,217.35,48.67326755]
[1756439366653,0.8,217.36,217.35,55.67326755]
[1756439368367,0.8,217.36,217.35,49.06087416]
[1756439368779,0.8,217.36,217.35,55.67326755]
[1756439369285,0.1,217.36,217.35,55.67326755]
[1756439369792,0.1,217.36,217.35,55.95759069]
[1756439369949,0.1,217.36,217.35,70.2131847]
[1756439370150,0.1,217.36,217.35,76.82557809]
[1756439370555,0.1,217.36,217.35,70.2131847]
[1756439370783,0.1,217.36,217.35,69.5531847]
[1756439371267,0.1,217.36,217.35,70.01327211]
[1756439373856,0.1,217.36,217.35,149.01327211]
[1756439374054,0.1,217.36,217.35,148.5531847]
[1756439374883,0.1,217.36,217.35,148.5331847]
[1756439375269,0.1,217.36,217.35,111.0931847]
[1756439375464,0.1,217.36,217.35,148.5331847]
[1756439376783,0.1,217.36,217.35,149.1931847]
[1756439377173,0.1,217.36,217.35,148.5331847]
[1756439377958,0.1,217.36,217.35,104.33862974]
[1756439378162,0.1,217.36,217.35,148.39102313]
[1756439378373,0.1,217.36,217.35,155.80557809]
[1756439379187,0.1,217.36,217.35,111.0931847]
[1756439379564,0.78,217.36,217.35,174.24886156]
[1756439380381,0.78,217.36,217.35,137.0931847]
[1756439380587,0.78,217.36,217.35,174.5331847]
[1756439381776,0.78,217.36,217.35,116.8851973]
[1756439381975,0.78,217.36,217.35,160.93759069]
[1756439382873,0.78,217.36,217.35,81.93759069]
[1756439383285,0.78,217.36,217.35,7.0]
[1756439383686,0.78,217.36,217.35,44.44]
[1756439384386,0.78,217.36,217.35,7.0]
[1756439384693,0.78,217.36,217.35,37.44]
[1756439384994,11.99308402,217.36,217.28,6.61239339]
[1756439385171,6.61239339,217.33,217.29,37.44]
[1756439385373,7.29239339,217.32,217.27,6.61239339]
[1756439385592,6.61239339,217.3,217.24,39.77239339]
[1756439385795,0.68,217.29,217.25,37.44]
[1756439386094,0.68,217.29,217.24,33.16]
[1756439386269,0.68,217.28,217.25,37.44]
[1756439386478,0.68,217.27,217.25,37.44]
[1756439386694,0.68,217.26,217.25,44.05239339]
[1756439387390,0.68,217.26,217.25,37.44]
[1756439387693,0.68,217.26,217.25,44.44]
[1756439387898,0.68,217.26,217.25,53.2436746]
[1756439388194,0.68,217.3,217.25,53.2436746]
[1756439388394,4.20068266,217.34,217.28,26.0]
[1756439388695,4.20068266,217.33,217.29,37.44]
[1756439388874,0.68,217.32,217.29,37.44]
[1756439389080,0.68,217.31,217.29,37.44]
[1756439389384,0.68,217.3,217.29,37.44]
[1756439391500,0.68,217.3,217.29,44.44]
[1756439392004,0.68,217.3,217.29,48.64068266]
[1756439392505,0.06,217.32,217.29,53.24277523]
[1756439392682,0.06,217.32,217.31,4.20068266]
[1756439392882,0.06,217.32,217.31,41.64068266]
[1756439394698,0.06,217.32,217.31,46.2424037]
[1756439395205,0.74,217.32,217.31,41.64068266]
[1756439395698,0.74,217.32,217.31,46.2424037]
[1756439395902,0.74,217.32,217.31,53.2424037]
[1756439396203,0.74,217.32,217.31,48.64068266]
[1756439396707,0.74,217.32,217.31,53.2424037]
[1756439397080,0.06,217.32,217.31,53.2424037]
[1756439399219,0.06,217.32,217.31,48.64068266]
[1756439399687,0.74,217.32,217.31,48.64068266]
[1756439400186,0.74,217.32,217.31,7.0]
[1756439400382,0.74,217.32,217.31,44.42]
[1756439400687,0.06,217.32,217.31,53.2224037]
[1756439401283,0.06,217.32,217.31,133.16672684]
[1756439401499,0.06,217.32,217.31,132.50672684]
[1756439406282,0.06,217.32,217.31,146.76232085]
[1756439406993,1e-08,217.32,217.31,146.90448242]
[1756439407308,1e-08,217.34,217.33,26.28432314]
[1756439407490,1e-08,217.34,217.33,68.36513555]
[1756439407807,1e-08,217.34,217.33,69.02513555]
[1756439408012,1e-08,217.34,217.33,0.74445289]
[1756439408211,1e-08,217.34,217.33,142.70432314]
[1756439408427,1e-08,217.34,217.33,146.9050058]
[1756439408600,1e-08,217.34,217.33,151.50630336]
[1756439408983,1e-08,217.34,217.33,72.50630336]
[1756439409187,0.71,217.45,217.42,2.39919206]
[1756439409406,0.71,217.45,217.44,4.20068266]
[1756439409789,0.1,217.52,217.44,4.20068266]
[1756439409790,0.71,217.49,217.44,4.20068266]
[1756439410000,0.71,217.49,217.45,41.62068266]
[1756439410503,0.71,217.51,217.45,46.21944099]
[1756439410701,0.71,217.51,217.45,53.21944099]
[1756439411692,0.71,217.5,217.45,53.21944099]
[1756439414810,0.81,217.46,217.45,11.20068266]
[1756439415015,0.81,217.46,217.45,53.19944099]
[1756439415218,5.40854685,217.46,217.4,0.4599816]
[1756439415416,30.20068266,217.43,217.37,4.20068266]
[1756439415620,0.71,217.42,217.39,4.20068266]
[1756439415807,0.71,217.41,217.4,4.20068266]
[1756439416123,0.71,217.41,217.4,37.4]
[1756439416433,0.71,217.44,217.4,47.60068266]
[1756439416621,0.1,217.46,217.44,4.59896983]
[1756439416797,0.1,217.46,217.45,41.8850058]
[1756439417717,0.1,217.46,217.45,56.18059981]
[1756439418927,0.1,217.46,217.45,60.77935814]
[1756439419923,0.1,217.46,217.45,66.77935814]
[1756439421300,0.1,217.46,217.45,145.75935814]
[1756439423034,0.1,217.46,217.45,141.55867548]
[1756439423204,0.1,217.46,217.45,145.75935814]
[1756439423404,0.1,217.46,217.45,104.17867548]
[1756439423734,0.1,217.46,217.45,145.75935814]
[1756439424107,0.1,217.46,217.45,108.37935814]
[1756439424315,0.1,217.46,217.45,145.75935814]
[1756439426129,0.1,217.46,217.45,108.37935814]
[1756439426332,0.1,217.46,217.45,145.05935814]
[1756439427931,0.1,217.46,217.45,145.78935814]
[1756439428114,0.1,217.46,217.45,139.78935814]
[1756439428315,0.1,217.46,217.45,141.63187014]
[1756439428830,0.1,217.52,217.51,44.08059981]
[1756439429031,0.1,217.52,217.51,81.46059981]
[1756439429209,0.1,217.52,217.51,82.16059981]
[1756439429405,1e-08,217.52,217.51,82.16059981]
[1756439429617,1e-08,217.52,217.51,84.00260181]
[1756439429817,1e-08,217.52,217.51,88.60009158]
[1756439430019,1e-08,217.52,217.51,89.05984055]
[1756439430231,0.1,217.58,217.52,13.87991715]
[1756439430427,0.67,217.63,217.52,13.87991715]
[1756439430428,0.67,217.6,217.57,4.20068266]
[1756439430624,0.67,217.6,217.58,41.8650058]
[1756439430938,0.67,217.6,217.58,4.4850058]
[1756439431232,4.20068266,217.65,217.59,4.20068266]
[1756439431419,0.67,217.64,217.6,41.56068266]
[1756439431623,0.67,217.63,217.6,37.36]
[1756439431939,0.67,217.7,217.63,13.87991715]
[1756439432142,0.67,217.69,217.64,4.20068266]
[1756439432441,0.67,217.68,217.64,4.20068266]
[1756439432640,0.67,217.67,217.65,41.56068266]
[1756439432823,26.0,217.77,217.66,37.36]
[1756439433024,4.20068266,217.73,217.67,4.20068266]
[1756439433346,26.0,217.77,217.61,19.11467005]
[1756439433347,4.20068266,217.71,217.68,37.36]
[1756439433545,0.67,217.7,217.69,37.36]
[1756439434117,4.87068266,217.7,217.69,37.36]
[1756439434315,0.67,217.7,217.69,37.36]
[1756439434541,9.46415992,217.7,217.69,37.36]
[1756439435917,9.46415992,217.7,217.64,6.0]
[1756439436133,4.20068266,217.67,217.65,37.36]
[1756439436342,0.67,217.66,217.65,37.36]
[1756439436849,0.67,217.66,217.58,9.16805301]
[1756439437019,0.67,217.65,217.6,4.20068266]
[1756439437220,0.67,217.64,217.6,4.20068266]
[1756439437416,0.67,217.63,217.6,4.20068266]
[1756439437656,0.67,217.62,217.59,4.20068266]
[1756439437854,9.4660953,217.61,217.56,8.79415966]
[1756439438142,0.67,217.6,217.57,37.36]
[1756439438364,0.67,217.59,217.57,37.36]
[1756439439133,0.67,217.59,217.57,6.0]
[1756439439330,0.67,217.59,217.5,0.71]
[1756439439331,4.20068266,217.59,217.5,0.71]
[1756439439543,4.20068266,217.59,217.53,4.20068266]
[1756439439926,0.67,217.58,217.54,41.56068266]
[1756439440143,0.67,217.58,217.55,4.20068266]
[1756439440458,0.67,217.61,217.57,4.20068266]
[1756439440642,0.67,217.61,217.58,41.56068266]
[1756439440829,4.20068266,217.63,217.58,37.36]
[1756439441027,4.87068266,217.62,217.59,37.36]
[1756439441227,0.67,217.61,217.59,37.36]
[1756439441436,0.67,217.6,217.59,37.36]
[1756439441645,0.67,217.6,217.52,4.87887614]
[1756439441845,0.67,217.6,217.55,4.20068266]
[1756439442050,0.67,217.59,217.55,4.20068266]
[1756439442352,0.67,217.58,217.56,37.36]
[1756439442556,4.20068266,217.61,217.57,37.36]
[1756439442721,0.67,217.62,217.57,37.36]
[1756439442722,4.20068266,217.64,217.58,4.20068266]
[1756439443030,4.87068266,217.64,217.58,4.20068266]
[1756439443646,9.32975767,217.72,217.59,18.08059981]
[1756439443824,4.20068266,217.76,217.7,4.20068266]
[1756439444022,0.67,217.78,217.72,4.20068266]
[1756439444229,4.87068266,217.78,217.72,4.20068266]
[1756439444434,4.20068266,217.76,217.73,37.54]
[1756439444632,4.87068266,217.76,217.7,4.20068266]
[1756439444826,4.20068266,217.73,217.67,0.28432314]
[1756439445047,4.20068266,217.74,217.68,41.72068266]
[1756439445246,4.87068266,217.75,217.69,37.52]
[1756439445546,0.67,217.75,217.7,4.20068266]
[1756439445852,0.67,217.75,217.71,4.59326627]
[1756439446222,0.67,217.78,217.71,8.79394893]
[1756439446426,4.20068266,217.77,217.71,9.50394893]
[1756439446623,4.87068266,217.78,217.72,4.20068266]
[1756439446829,4.87068266,217.78,217.73,37.5]
[1756439447032,4.87068266,217.77,217.74,37.5]
[1756439447248,4.20068266,217.75,217.72,6.0]
[1756439447465,0.67,217.75,217.73,37.48]
[1756439448556,0.67,217.75,217.74,37.46]
[1756439448741,0.67,217.75,217.72,6.0]
[1756439448937,8.79290507,217.76,217.74,37.46]
[1756439449253,4.20068266,217.75,217.65,0.71]
[1756439449559,4.20068266,217.73,217.67,4.20068266]
[1756439449767,0.67,217.72,217.66,41.64068266]
[1756439449942,11.47900841,217.79,217.67,4.20068266]
[1756439450128,4.20068266,217.74,217.68,4.91068266]
[1756439450328,0.67,217.76,217.69,4.59368827]
[1756439450556,4.20068266,217.74,217.69,4.59368827]
[1756439450864,4.20068266,217.74,217.7,37.46]
[1756439451062,4.20068266,217.74,217.7,38.17]
[1756439451353,4.20068266,217.74,217.7,5.30343097]
[1756439451531,4.20068266,217.74,217.71,37.44]
[1756439451931,4.20068266,217.74,217.71,43.44]
[1756439452132,4.20068266,217.74,217.71,6.0]
[1756439452341,4.20068266,217.74,217.72,37.42]
[1756439452743,4.20068266,217.75,217.73,37.42]
[1756439453260,5.26178418,217.79,217.73,37.42]
[1756439453461,4.20068266,217.75,217.73,37.42]
[1756439453637,4.59179132,217.78,217.73,37.42]
[1756439453839,4.20068266,217.75,217.73,37.42]
[1756439454038,4.87068266,217.75,217.71,6.0]
[1756439454266,4.87068266,217.75,217.72,37.38]
[1756439454460,4.87068266,217.75,217.71,6.0]
[1756439454634,4.87068266,217.74,217.72,37.38]
[1756439454968,4.87068266,217.73,217.65,10.91068266]
[1756439455191,4.20068266,217.73,217.67,4.20068266]
[1756439455396,4.20068266,217.73,217.68,0.71]
[1756439455581,0.67,217.73,217.68,5.30389766]
[1756439455787,4.20068266,217.73,217.69,0.71]
[1756439455972,4.20068266,217.74,217.7,37.36]
[1756439456175,4.87068266,217.74,217.7,37.36]
[1756439456491,4.20068266,217.73,217.7,37.36]
[1756439456875,4.87068266,217.73,217.67,4.59394455]
[1756439457186,4.20068266,217.72,217.67,4.59394455]
[1756439457378,4.20068266,217.73,217.68,38.05]
[1756439457578,4.20068266,217.73,217.68,44.05]
[1756439457768,4.20068266,217.73,217.69,0.71]
[1756439457964,4.20068266,217.74,217.68,47.54068266]
[1756439458168,4.20068266,217.74,217.69,0.71]
[1756439458791,4.20068266,217.72,217.68,43.34]
[1756439458995,0.67,217.71,217.69,37.34]
[1756439459193,4.87068266,217.71,217.69,37.34]
[1756439459391,4.20068266,217.71,217.69,37.34]
[1756439459602,0.67,217.74,217.69,38.05]
[1756439459800,4.20068266,217.72,217.69,38.05]
[1756439459992,4.20068266,217.74,217.69,37.34]
[1756439460186,4.20068266,217.74,217.7,0.71]
[1756439460708,0.68,217.78,217.72,8.79373796]
[1756439461000,4.20068266,217.78,217.73,37.34]
[1756439461205,4.20068266,217.78,217.74,0.66]
[1756439461985,4.20068266,217.78,217.74,11.25248975]
[1756439462609,4.20068266,217.79,217.74,10.59248975]
[1756439462794,4.20068266,217.79,217.75,0.66]
[1756439462995,4.20068266,217.78,217.74,10.59248975]
[1756439463312,4.20068266,217.78,217.75,0.66]
[1756439464407,4.20068266,217.79,217.76,0.66]
[1756439464615,4.20068266,217.79,217.77,37.34]
[1756439465587,0.06,217.79,217.77,37.34]
[1756439465793,4.88068266,217.78,217.76,37.34]
[1756439466013,4.88068266,217.77,217.76,37.34]
[1756439467701,0.68,217.77,217.76,37.34]
[1756439467904,4.88068266,217.77,217.76,37.34]
[1756439468205,0.06,217.79,217.74,5.25261233]
[1756439468406,4.20068266,217.78,217.75,38.0]
[1756439468795,0.06,217.79,217.75,6.66]
[1756439469011,4.20068266,217.78,217.76,37.34]
[1756439469596,4.20068266,217.77,217.76,37.34]
[1756439469902,0.06,217.82,217.78,0.28432314]
[1756439470099,0.06,217.82,217.79,0.66]
[1756439470301,0.06,217.82,217.8,38.06]
[1756439470523,0.06,217.82,217.81,38.06]
[1756439470696,0.06,217.82,217.81,38.04]
[1756439470900,0.06,217.82,217.81,42.24068266]
[1756439471097,0.06,217.82,217.81,38.04]
[1756439471922,0.06,217.82,217.78,0.66]
[1756439472130,0.06,217.82,217.79,42.22068266]
[1756439472312,0.06,217.82,217.8,38.02]
[1756439472503,0.06,217.82,217.81,37.36]
[1756439472699,0.06,217.82,217.81,38.02]
[1756439472899,0.06,217.82,217.81,44.02]
[1756439473206,4.94068266,217.82,217.81,6.0]
[1756439473411,4.94068266,217.82,217.81,37.36]
[1756439473845,4.94068266,217.82,217.77,0.66]
[1756439474047,4.88068266,217.81,217.78,37.36]
[1756439474210,4.20068266,217.79,217.78,37.36]
[1756439474419,4.20068266,217.79,217.75,0.66]
[1756439474611,4.20068266,217.77,217.71,4.86068266]
[1756439474915,4.65103478,217.82,217.72,37.34]
[1756439475140,4.20068266,217.8,217.74,4.20068266]
[1756439475436,0.06,217.82,217.75,0.66]
[1756439475608,0.06,217.82,217.76,41.54068266]
[1756439475809,0.06,217.82,217.76,37.34]
[1756439475810,4.20068266,217.8,217.76,37.34]
[1756439476013,4.20068266,217.79,217.77,37.34]
[1756439476228,4.20068266,217.79,217.77,0.66]
[1756439476538,4.20068266,217.79,217.78,37.34]
[1756439477242,4.20068266,217.79,217.78,37.32]
[1756439477441,4.20068266,217.8,217.78,37.32]
[1756439477925,4.88068266,217.79,217.69,0.66]
[1756439478236,4.20068266,217.74,217.7,37.34]
[1756439478422,0.68,217.77,217.7,38.0]
[1756439478623,4.20068266,217.76,217.71,0.66]
[1756439478923,4.20068266,217.74,217.7,37.34]
[1756439479126,4.20068266,217.74,217.7,38.0]
[1756439479433,4.20068266,217.73,217.7,37.34]
[1756439479620,0.68,217.81,217.72,4.4850058]
[1756439479934,4.20068266,217.78,217.73,0.66]
[1756439480137,4.20068266,217.74,217.7,0.66]
[1756439480437,4.20068266,217.75,217.71,38.0]
[1756439480735,4.20068266,217.75,217.71,37.34]
[1756439480911,4.20068266,217.76,217.72,0.66]
[1756439481235,4.20068266,217.77,217.73,0.66]
[1756439481539,4.20068266,217.77,217.74,0.66]
[1756439481842,4.20068266,217.78,217.75,38.0]
[1756439482024,0.74,217.82,217.76,0.66]
[1756439482220,4.20068266,217.8,217.76,0.66]
[1756439483136,4.20068266,217.8,217.76,5.25202141]
[1756439483939,0.74,217.82,217.76,5.25202141]
[1756439484129,4.20068266,217.8,217.76,5.25202141]
[1756439484324,4.20068266,217.8,217.76,10.59202141]
[1756439484529,0.06,217.8,217.78,4.59178987]
[1756439484719,0.06,217.8,217.79,37.98]